Cogmind - Beta 16.1 @@@ ROGUE MODE // 2026.03.30 @ 01:20:46 Player: Xintrosi Result: Destroyed by D9-TPU(R) with Subdweller Machine Gun Performance ------------- Evolutions (0) 0 Regions Visited (2) 400 Robots Destroyed (18) 90 Value Destroyed (639) 639 Prototype IDs (0) 0 Alien Tech Used (0) 0 Bonus (0) 0 TOTAL SCORE: 1129 Bonus ------- None Cogmind --------- Core Integrity 0/250 Matter 290/300 Energy 200/200 System Corruption 1% Temperature Cool (0) Movement Rolling (110) Location -10/Subcaves Parts ------- > --- POWER (1) -------- Subdweller Power Source > --- PROPULSION (2) --- Subdweller Monowheel Subdweller Monowheel > --- UTILITY (2) ------ Disposable Heat Sink Medium Storage Unit > --- WEAPON (2) ------- Subdweller Beam Cannon Heavy Battle Rifle > --- INVENTORY (10) --- Ion Engine Subdweller Power Source Small Storage Unit Improved Terrain Scanner Subdweller Laser Light Assault Rifle Light Assault Rifle Light Assault Rifle Battle Cannon Grenade Launcher Peak State ------------ > --- POWER ------------ Subdweller Power Source > --- PROPULSION ------- Subdweller Monowheel Subdweller Monowheel > --- UTILITY ---------- Disposable Heat Sink Medium Storage Unit > --- WEAPON ----------- Subdweller Beam Cannon Heavy Battle Rifle > --- INVENTORY -------- Ion Engine Subdweller Power Source Small Storage Unit Improved Terrain Scanner Small Laser Subdweller Laser Light Assault Rifle Light Assault Rifle Light Assault Rifle Grenade Launcher [Rating: 16] Favorites ----------- Power Ion Engine Engine Ion Engine Power Core Light Nuclear Core Propulsion Light Treads Treads Light Treads Leg Aluminum Leg Wheel Subdweller Monowheel Utility Medium Storage Unit Device Seismic Detector Storage Medium Storage Unit Weapon Light Assault Rifle Energy Cannon Subdweller Beam Cannon Ballistic Gun Light Assault Rifle Launcher Grenade Launcher Build | -11 -10 -10 ------- Run | Yrd Mat Sub Slots Evolved . | . . . Power . | . . . Propulsion . | . . . Utility . | . . . Weapon . | . . . Parts Attached 21 | 8 5 8 Power 5 | 1 1 3 Engine 4 | 1 . 3 Core 1 | . 1 . Reactor . | . . . Propulsion 5 | 2 1 2 Treads 2 | 2 . . Leg 1 | . 1 . Wheel 2 | . . 2 Hover . | . . . Flight . | . . . Utility 5 | 3 1 1 Device 3 | 2 . 1 Storage 2 | 1 1 . Processor . | . . . Hackware . | . . . Protection . | . . . Artifact . | . . . Weapon 6 | 2 2 2 Energy Gun . | . . . Energy Cannon 1 | . . 1 Ballistic Gun 4 | 2 1 1 Ballistic Cannon . | . . . Launcher 1 | . 1 . Special Weapon . | . . . Impact Weapon . | . . . Slashing Weapon . | . . . Piercing Weapon . | . . . Special Melee Weapon . | . . . Unidentified Prototypes . | . . . Parts Lost 6 | . 2 4 Power 2 | . 1 1 Propulsion 3 | . 1 2 Utility 1 | . . 1 Weapon . | . . . Highest Loss Streak 3 | . 2 3 To Critical Strikes . | . . . Average Backups 6 | 2 6 9 Power 1 | . 1 1 Propulsion . | . . . Utility 1 | . 1 2 Weapon 3 | . 3 5 Tool/Special . | . . . Unused Backups 5 | . . 5 Power . | . . . Propulsion . | . . . Utility 1 | . . 1 Weapon 4 | . . 4 Tool/Special . | . . . Average Slot Usage (%) 98 | . 99 95 Engine 9 | . 8 11 Core 4 | . 5 2 Treads 16 | . 22 1 Leg 5 | . 5 7 Wheel 4 | . . 17 Device 13 | . 14 11 Storage 14 | . 14 14 Energy Cannon 1 | . . 6 Ballistic Gun 26 | . 27 21 Peak Build Rating 16 | 7 9 16 Average Rating 9 | 5 7 13 On Entrance 5 | . 7 9 Avg Prop Armor Cover (%) 8 | . 8 8 Naked Turns . | . . . Heaviest Build 28 | 13 18 28 Greatest Support 40 | 40 40 40 Greatest Overweight (x) 1 | . . 1 Average Overweight (x) . | . . . Largest Inventory Capacity 10 | 8 10 10 Average Capacity 9 | 7 9 10 Most Carried 10 | 3 7 10 Average Carried 6 | 2 6 9 Final Capacity 10 | 8 10 10 Final Carried 10 | 3 7 10 Class Distribution -------------------- 88% | Mutant 11% | Scavenger-Mutant Dominant Class ---------------- Mutant | -10/Materials Mutant | -10/Subcaves Resources | -11 -10 -10 ----------- Run | Yrd Mat Sub Matter Collected 604 | 295 162 147 Remotely 127 | 127 . . Salvage Created 739 | 118 426 195 Parts 45 | 7 23 15 Haulers Intercepted . | . . . Recyclers Shooed . | . . . Parts Field Recycled . | . . . Retrieved Matter . | . . . Parts Self-Destructed . | . . . Prevented . | . . . Parts Restored . | . . . Kills | -11 -10 -10 ------- Run | Yrd Mat Sub Combat Hostiles Destroyed 16 | . 11 5 Guns 13 | . 8 5 AOE 3 | . 3 . Classes Destroyed 4 | 2 1 1 Tunneler 1 | 1 . . Recycler 1 | 1 . . Grunt 11 | . 11 . Subdweller 5 | . . 5 Best Kill Streak 4 | 1 4 3 Combat Bots Only 4 | . 4 3 Max Kills in Single Turn 3 | 1 3 1 Gunslinging . | . . . Exploded 3 | . 3 . Melee . | . . . Uniques/NPCs Destroyed . | . . . Combat | -11 -10 -10 -------- Run | Yrd Mat Sub Hostile Shots Fired 91 | . 54 37 Missed 23 | . 11 12 Hits 68 | . 43 25 Projectile 68 | . 43 25 Critical Strikes 3 | . 1 2 Damage Taken 1120 | . 558 562 Core 271 | . 94 177 Absorbed by Shields . | . . . Core Remaining (%) 100 | 100 . . Volleys Fired 79 | 9 39 31 Largest 2 | 2 2 2 Hottest 80 | 40 40 80 Shots Fired 150 | 18 77 55 Gun 141 | 18 75 48 Cannon 7 | . . 7 Launcher 2 | . 2 . Special . | . . . Kinetic 141 | 18 75 48 Thermal 7 | . . 7 Explosive 2 | . 2 . Electromagnetic . | . . . Robot Hit Streak 30 | 4 18 30 Robot Miss Streak 3 | 2 3 1 Penetration Max . | . . . Secondary Targets 1 | . . 1 Max Gunslinging Chain 1 | . . 1 Shots Hit Robots 110 | 11 57 42 Core Hits 50 | 3 33 14 Critical Kills . | . . . Critical Parts Destroyed 1 | . 1 . Critical Strikes 3 | . 1 2 Destroy 3 | . 1 2 Melee Attacks . | . . . Impact . | . . . Slashing . | . . . Piercing . | . . . Sneak Attacks . | . . . Combat Hostiles . | . . . Follow-up Attacks . | . . . Damage Inflicted 1363 | 88 617 658 Guns 1189 | 88 443 658 Cannons . | . . . Explosions 174 | . 174 . Melee . | . . . Ramming . | . . . Kinetic 1189 | 88 443 658 Thermal . | . . . Explosive 174 | . 174 . Electromagnetic . | . . . Impact . | . . . Slashing . | . . . Piercing . | . . . Highest Corruption 1 | . 1 1 Average Corruption 1 | . 1 1 Corruption Purged . | . . . Corruption Blocked . | . . . Effects 7 | . 7 . Message Errors 2 | . 2 . Matter Fused 2 | . 2 . Heat Flow Errors 1 | . 1 . Data Loss (minor) 1 | . 1 . Misfires 1 | . 1 . Overload Shots . | . . . Overflow Damage . | . . . Projectiles . | . . . Explosions . | . . . Melee . | . . . Knockbacks . | . . . Impact . | . . . Kinetic . | . . . Secondary . | . . . Self-Inflicted Damage . | . . . Shots . | . . . Rammed . | . . . Targets Rammed . | . . . Kicked . | . . . Crushed . | . . . Highest Temperature 235 | . 231 235 Average Temperature 50 | . 43 130 Received Heat Transfer 770 | . 330 440 Siege Activations . | . . . Martial Activations . | . . . Shielding Activations . | . . . Robots Disrupted . | . . . Combat Hostiles . | . . . Robots Corrupted . | . . . Combat Hostiles . | . . . Parts Fried . | . . . Impact Corruptions . | . . . Robots Melted . | . . . Combat Hostiles . | . . . Parts Melted . | . . . Heat Transferred . | . . . Parts Sabotaged . | . . . Parts Stolen . | . . . Parts Stripped . | . . . Power Chain Reactions . | . . . Alert | -11 -10 -10 ------- Run | Yrd Mat Sub Maximum Alert Level . | . . . Low Security (%) 100 | 100 100 . Level 1 . | . . . Level 2 . | . . . Level 3 . | . . . Level 4 . | . . . Level 5 . | . . . High Security . | . . . Max Security . | . . . Peak Influence 158 | 5 158 . Initial . | . . . Average 52 | . 60 . Influence Increases 340 | 10 330 . Destroy 0b10 Robot/C 220 | . 220 . Destroy 0b10 Robot/NC 10 | 10 . . Destroy Leader 60 | . 60 . Successful Hack 29 | . 29 . Destroy Structure 6 | . 6 . Lose Combat Pursuer 15 | . 15 . Influence Decreases 340 | 10 298 32 Entered New Map 16 | . . 16 Time Decay 294 | 10 278 6 Lost Part 30 | . 20 10 Squads Dispatched 2 | . 2 . Investigation 1 | . 1 . Extermination . | . . . Reinforcement 1 | . 1 . Assault . | . . . Garrison . | . . . Intercept . | . . . Searches Triggered . | . . . Construction Impeded . | . . . Haulers Reinforced . | . . . Active Scanning Responses . | . . . Cargo Convoy Interrupts . | . . . Stealth | -11 -10 -10 --------- Run | Yrd Mat Sub Distress Signals 1 | . 1 . Communications Jammed . | . . . Distress Signals . | . . . Times Spotted 23 | . 15 8 Peak Tracking Total 7 | . 7 3 Tactical Retreats 1 | . 1 . Traps | -11 -10 -10 ------- Run | Yrd Mat Sub Traps Triggered 2 | . 2 . Indirectly . | . . . Trap Hack Attempts . | . . . Triggered . | . . . Disarmed . | . . . Reprogrammed . | . . . Reused . | . . . Traps Extracted . | . . . Installed . | . . . Triggered . | . . . Machines | -11 -10 -10 ---------- Run | Yrd Mat Sub Machines Disabled . | . . . Max in Single Turn . | . . . Machines Repaired . | . . . Machines Dismantled . | . . . Machines Sabotaged . | . . . Overloaded Fab Kills . | . . . Hacking | -11 -10 -10 --------- Run | Yrd Mat Sub Machines Accessed 6 | . 6 . Terminals 6 | . 6 . Fabricators . | . . . Repair Stations . | . . . Recycling Units . | . . . Scanalyzers . | . . . Garrison Access . | . . . Total Hacks 22 | . 22 . Successful 11 | . 11 . Failed 10 | . 10 . Catastrophic 2 | . 2 . Database Lockouts 1 | . 1 . Manual 15 | . 15 . Terminals 22 | . 22 . Fabricators . | . . . Repair Stations . | . . . Recycling Units . | . . . Scanalyzers . | . . . Garrison Access . | . . . Terminal Hacks 5 | . 5 . Part Schematic 1 | . 1 . Emergency Access Points 1 | . 1 . Terminal Index 1 | . 1 . Registered Prototypes 1 | . 1 . Zone Layout 1 | . 1 . Fabricator Hacks . | . . . Repair Station Hacks . | . . . Recycling Unit Hacks . | . . . Scanalyzer . | . . . Garrison Access Hacks . | . . . Unauthorized Hacks 6 | . 6 . Terminals 6 | . 6 . Botnet 1 | . 1 . Skim 5 | . 5 . Fabricators . | . . . Repair Stations . | . . . Recycling Units . | . . . Scanalyzers . | . . . Garrison Access . | . . . Data Cores Recovered . | . . . Used . | . . . Hacking Detections 6 | . 6 . Full Trace Events . | . . . Feedback Events . | . . . Feedback Blocked . | . . . Robot Schematics Acquired . | . . . Robots Built . | . . . Authchips . | . . . Time . | . . . Total Robot Build Rating . | . . . Part Schematics Acquired 1 | . 1 . Parts Built . | . . . Authchips . | . . . Time . | . . . Total Part Build Rating . | . . . Part Studies Acquired . | . . . Parts Repaired . | . . . Time . | . . . Parts Recycled . | . . . Recycled Matter . | . . . Retrieved Matter . | . . . Retrieved Components . | . . . Parts Scanalyzed . | . . . Part Schematics Acquired . | . . . Parts Damaged . | . . . Bothacking | -11 -10 -10 ------------ Run | Yrd Mat Sub Used RIF Installer . | . . . Robots Hacked . | . . . Non-combat . | . . . Combat . | . . . Robot Hacks Applied . | . . . Relay Couplers Released . | . . . Fabnet Peak Effective % . | . . . Robots Rewired . | . . . Allies Hacked . | . . . Hacks Repelled . | . . . Allies | -11 -10 -10 -------- Run | Yrd Mat Sub Total Allies . | . . . Largest Group . | . . . Highest-Rated Group . | . . . Highest-Rated Ally . | . . . Total Orders . | . . . Ally Attacks . | . . . Total Damage . | . . . Kills . | . . . Allies Corrupted . | . . . Allies Melted . | . . . Intel | -11 -10 -10 ------- Run | Yrd Mat Sub Active Infowar (turns) 1004 | 11 976 17 Seismic 1004 | 11 976 17 Robot Analysis Total . | . . . Derelict Logs Recovered . | . . . Drone Launches . | . . . Drone Recoveries . | . . . Exploration | -11 -10 -10 ------------- Run | Yrd Mat Sub Turns Passed 1494 | 136 976 382 Spaces Moved 666 | 64 369 233 Core 4 | 4 . . Treads 439 | 60 369 10 Legs 2 | . . 2 Wheels 221 | . . 221 Hover . | . . . Flight . | . . . Fastest Speed 50 | 50 160 110 Average Speed 144 | 153 160 116 Slowest Speed 240 | 160 160 240 Overloaded Moves . | . . . Propulsion Burnouts . | . . . Robots Hopped . | . . . Potential Cave-ins . | . . . Cave-ins Triggered . | . . . Exploration Rate (%) 30 | 4 62 24 Regions Visited 2 Branch Regions 1 Pre-discovered Areas . | . . . Known Exits Taken . | . . . Unknown Exits Taken 2 | 1 1 . Scrap Searched . | . . . Spaces Dug . | . . . Terrain Destroyed 6 | . 6 . Melee . | . . . Projectile . | . . . AOE 6 | . 6 . Terrain Rammed . | . . . Walls Destroyed . | . . . Machines Disabled . | . . . Actions | -11 -10 -10 --------- Run | Yrd Mat Sub Total 1066 | 85 691 290 Wait 289 | . 276 13 Move 664 | 63 368 233 Hop . | . . . Pick Up 8 | 3 2 3 Fast Attach 14 | 8 2 4 Attach 1 | . . 1 Detach 1 | 1 . . Swap 7 | . 4 3 Drop 3 | 1 . 2 Fire 79 | 9 39 31 Melee . | . . . Ram . | . . . Kick . | . . . Crush . | . . . Escape Stasis . | . . . Rewire . | . . . Trap . | . . . Miscellaneous . | . . . Route ------- -11/Scrapyard -10/Materials (discovered 6 exits: [*Mat x3] / *Min x2 / [*Sub]) -10/Subcaves (discovered 2 exits: *Mat x2) History --------- Turn | Location | Event 5 | -11/Scrapyard | Discovered new exit (range 16) 137 | -11/Scrapyard | Entered Materials 301 | -10/Materials | Build established: Mutant 343 | -10/Materials | Discovered new exit (range 9) 355 | -10/Materials | Discovered new exit (range 16) 421 | -10/Materials | Discovered new exit (range 11) 431 | -10/Materials | Central database locked down 683 | -10/Materials | Discovered new exit (range 15) 830 | -10/Materials | Discovered new exit (range 6) 860 | -10/Materials | Learned location of 2 exits from Subcaves 918 | -10/Materials | Loaded intel: 1 trap record 965 | -10/Materials | Learned 2 Mines zone layouts 1003 | -10/Materials | Learned location of 1 exit from Storage 1030 | -10/Materials | Identified exit to Mines 1030 | -10/Materials | Learned location of 2 exits from Materials 1111 | -10/Materials | Learned Storage stockpile data 1113 | -10/Materials | Entered Subcaves 1114 | -10/Subcaves | Shifting Twisted Machinery released Hvy. Battle Rifle 1114 | -10/Subcaves | Shifting Twisted Machinery released Sub. Laser 1114 | -10/Subcaves | Approached by a straggling Scientist 1114 | -10/Subcaves | Identified exit to Materials 1162 | -10/Subcaves | Core integrity fell below 50% 1191 | -10/Subcaves | Lost 3 parts (1p1n1u) 1293 | -10/Subcaves | Core integrity fell below 20% 1476 | -10/Subcaves | A swath of the cavern ceiling suddenly collapsed 1495 | -10/Subcaves | Destroyed by D9-TPU(R) with Subdweller Machine Gun Last Messages --------------- 01304_ NK-IFS(R) affixes Scrap Shield Fragment to Scrap Shield. 01306_ Aluminum Leg destroyed. 01306_ Critical hit (Meltdown: +290). 01308_ NK-IFS(R) destroyed. 01310_ Acquired 27 matter. 01313_ Acquired Sub. Monowheel. 01315_ Acquired 10 matter. 01323_ Dropped Lgt. Assault Rifle. 01324_ Acquired Sub. Beam Cannon. 01333_ XM-8O3(u) builds Twisted Machinery. 01378_ 4T-A18(u) builds Twisted Machinery. 01432_ Acquired 12 matter. 01434_ Acquired 8 matter. 01459_ Sub. Power Source shoots sparks and powers down. 01464_ Dropped Sml. Laser. 01465_ Acquired Battle Cannon. A swath of the cavern ceiling suddenly collapses. Map ----- +----------------------------------------------------+ | ????????????????????????????????????????????????? | | ????????????????????????????????????????????????? | | ????????????????????????????????????????????????? | | ????????????????????????????????????????????????? | | ????????????????????????????????????????????????? | | ????????????????????????????????????????????????? | | ????????????????????????????????????????????????? | | ????????????????????????????????????????????????? | | ????????????????????????????????????????????????? | | ????????????????????????????????????????????????? | | ????????????????????????????????????????????????? | | ????????????????????????????????????????????????? | | ????????????????????????????? ??????????????????? | | ????????????????????????????? ? ??????????????? | | ????????????????????????????? ????????????? | | ????????????????????????????? #??????????? | | ???????????????????????????? ??????????? | | ???????????????????????????? ???????????? | | ???????????????????????????? ????????????? | | ???????????????????????????? #?????????????? | | ???????????????????????????? #??????????????? | | ?????????????????????##????? #??????????????? | | ??????????????##????## ##### ##?????????????? | | ??????????????# ## # # #####?????????? | | ???????????????# ###???????? | | ???????????????# @ #???????? | | ???????????????# ## ??????? | | ???????????????# R ?## #### ???????? | | ???????????????## ??## ##???????????????? | | ????????????????#### R??# #????????????????? | | ???????????????????# ??## ##???????????????? | | ???????????????????## ??# #???????????????? | | ????????????????????#??## #???????????????? | | ?????????????????????### #####???????????????? | | ????????????????????## ##???????????????????? | | ??????????????????### #????????????????????? | | ?????????????????##"" #????????????????????? | | ???????????????###"" ## ##????????????????????? | | ???????????????# "" ### ##???? ????????????????? | | ???????????????# "" ## ###?? #???????????????? | | ???????????????#"" # # # #???????????????? | | ???????????????#"" "# #???????????????? | | ??????????????##" ""# #??????????????? | | ??????????????# #####?????????????????????? | | ??????????????# #?????????????????????????? | | ??????????????# ######????????????????????? | | ??????????????# ## #### ???????????????? | | ??????????????## ## ??????????????? | | ???????????????### ## ??????????????? | | ????????????????## #??????????????? | +----------------------------------------------------+ Best States ------------- Heat Dissipation 25 Coolant Potential 50 Energy Generation 15 Energy Capacity 250 Matter Stores 300 Matter Capacity 300 Sight Range 16 Terrain Scan Density 10 Evasion (%) 40 Recoil Reduction 2 Item Schematics ----------------- Lrg. Storage Unit | -10/Materials | Hacked Robot Schematics ------------------ None Fabricated ------------ Nothing Repaired ---------- Nothing Studied --------- None Alien Tech Used ----------------- None Achievements -------------- None Challenges ------------ None Game ------ Seed TerrabombSpreadLaser Manual? 0 Play Time 00:13:08 Cumulative 176.3 hours Start 2026.03.30 @ 01:06:26 End 2026.03.30 @ 01:20:46 Sessions 3 Manual Loads 0 Difficulty Rogue Special Mode None Game No. 71 Rogue 71 Adventurer 0 Explorer 0 Win Type - Total 4 Types 2/0/0/2/0/0/0/0/0/0 Lore% 39 Gallery% 54 Achievement% 46 Wizard Run 0 Options --------- Layout 2 ASCII 0 Keyboard 1 Movement Numpad Keybinds 0 Fullscreen 2 Font 24/Smallcaps Map View 50x44 Zoom Use 0% Tactical HUD 1 Map Filters NONE Filters NONE Steam 1 RUN: cf2286b3-47c4-41ab-999f-0e0faf3be941